Workbook

Sheet READ ME
D11: Read Me Sheet
D16: INVEST – Farm Analysis Tool
D18: Introduction
D19: This tool allows for assessment on farm productivity and profitability through its average annual agricultural production. The tool is useful for establishing a baseline or to assess the impact of planned investments. This tool allows a SPIS advisor (supplier, development practitioner, extension officer) to support a farm enterprise towards identify unnecessary costs, determine best value agricultural activities and correctly monetize different farm inputs.
D26: Tips & Tricks
D36: Overview
D37: This tool comprises the following sheets:
D38: 1. General Information | G38: on the farm identity, location and area
D40: 2. Equipment & Assets | G40: currently available on the farm or considered for future purchase
D42: 3. Income Crops & Livestock | G42: to add current or projected sales of seasonal crops (e.g. rice, maize), perennial crops (e.g. fruits) and livestock and respective by-products
D45: 4. Other Income | G45: additional income not directly related to crop or livestock production such as sale of water or rental out of equipment
D48: 5. Financing | G48: calculates annual loan repayment based on credit information
D50: 6. Fixed and Variable Costs | G50: to add all fixed and variable costs/expenditures of the farm enterprise
D52: 9. Farm Income Statement | G52: No Entry! Summary calculation on gross profitability of the farm enterprise
D54: Crop Price Calculation Sheet | G54: side sheet for calculating average annual crop and livestock prices
D56: Quick Check | G56: side sheet for a quick calculation of farm profitability useful before conducting full analysis
D59: About
D60: Published by: | F60: GIZ & FAO
D61: Responsible: | F61: GIZ project Sustainable Energy for Food - Powering Agriculture
D63: Contact: | F63: Powering.Agriculture@giz.de
D64: Download link: | F64: https://energypedia.info/wiki/Toolbox_on_SPIS
D65: About: | F65: Powering Agriculture: An Energy Grand Challenge for Development. Available at:
F67: https://poweringag.org
D68: Version: | F68: 1.5 (December 2018)
D70: The Toolbox on Solar Powered Irrigation Systems is made possible through the global initiative Powering Agriculture: An Energy Grand Challenge for Development (PAEGC). In 2012, the United States Agency for International Development (USAID), the Swedish International Development Cooperation Agency (Sida), the German Federal Ministry for Economic Cooperation and Development (BMZ), Duke Energy, and the Overseas Private Investment Cooperation (OPIC) combined resources to create the PAEGC initiative. The objective of PAEGC is to support new and sustainable approaches to accelerate the development and deployment of clean energy solutions for increasing agriculture productivity and/or value for farmers and agribusinesses in developing countries and emerging regions that lack access to reliable, affordable clean energy.
D83: The designations employed and the presentation of material in this information product do not imply the expression of any opinion whatsoever on the part of Deutsche Gesellschaft für Internationale Zusammenarbeit (GIZ) GmbH, Food and Agriculture Organization of the United Nations (FAO) or any of the PAEGC Founding Partners concerning the legal or development status of any country, territory, city or area or of its authorities, or concerning the delimitation of its frontiers or boundaries. The mention of specific companies or products of manufacturers, whether or not these have been patented, does not imply that these have been endorsed or recommended by GIZ, FAO, or any of the PAEGC Founding Partners in preference to others of a similar nature that are not mentioned. The views expressed in this information product are those of the author and do not necessarily reflect the views or policies of GIZ, FAO, or any of the PAEGC Founding Partners.
D98: GIZ, FAO and the PAEGC Founding Partners encourage the use, reproduction and dissemination of material in this information product. Except where otherwise indicated, material may be copied, downloaded and printed for private study, research and teaching purposes, or for use in non-commercial products or services, provided that appropriate acknowledgement of GIZ and FAO as the source and copyright holder is given.
D106: © GIZ and FAO, 2018

Sheet List of dropdown (hidden)
A2: Area | B2: CF to ha
A3: ha | B3: 1
A4: Acre | B4: 2.47105
A5: Sq. km | B5: 0.01
A6: Sq. m | B6: 10000
A7: Sq. yard | B7: 11959.9
A8: Sq. ft | B8: 107639
A10: Conversion Factor | B10: =VLOOKUP('1 General Information'!D14,'List of dropdown'!A3:B8,2,FALSE) -> 1
A13: Weight | B13: CF to kg
A14: kg | B14: 1
A15: metric ton | B15: 1000
A16: quintal | B16: 100
A17: pound (lb) | B17: 0.4536
A19: Conversion Factor | B19: =VLOOKUP('1 General Information'!D15,'List of dropdown'!A14:B17,2,FALSE) -> 1

Sheet 1 General Information
A1: INVEST – Farm Analysis Tool
B2: 1 GENERAL FARM INFORMATION
B5: Country | G5: Region
B6: Farm code or name | G6: Date
B8: Village
B9: Division
B10: District
B11: Assessor
B12: Agricultural planning period (years) | D12: 2018 | E12: 2019 | F12: (year in four digits each ! )
B13: Currency used for calculation | D13: €
B14: Area measurement unit | D14: ha | I14: Conversion factor to 1 ha : | J14: ='List of dropdown'!B10 -> 1
B15: Weight measurement unit | D15: kg | I15: Conversion factor to 1 kg : | J15: ='List of dropdown'!B19 -> 1
B18: LAND RESOURCES
B20: Property rights | D20: Area
B21: + Land owned | E21: 6 | F21: =+$D$14 -> ha | G21: = | I21: =+E21/$J$14 -> 6 | J21: ha
B22: + Additional land as part of co-operative land | F22: =+$D$14 -> ha | G22: = | I22: =+E22/$J$14 -> 0 | J22: ha
B23: + Additional land exploited as sharegrower | F23: ha | G23: = | I23: 0 | J23: ha
B24: + Additional land leased in | F24: ha | G24: = | I24: 0 | J24: ha
B25: - Own land leased out | F25: ha | G25: = | I25: 0 | J25: ha
B26: + Additional land in possession of other sources | F26: ha | G26: = | I26: 0 | J26: ha
B27: - Own land unused or unusable | F27: ha | G27: = | I27: 0
D28: Total | E28: =+SUM(E21:E24)-E25+E26-E27 -> 6 | F28: ha | G28: = | I28: 6 | J28: ha
B31: Land classification | D31: Area | E31: rain fed | F31: irrigated | I31: Total area
B32: Seasonal crop land | E32: 2 | G32: =+$D$14 -> ha | H32: = | I32: =(+E32+F32)/$J$14 -> 2 | J32: ha
B33: Perennials (with & without option of intercropping) | F33: 2 | G33: ha | H33: = | I33: =(+E33+F33)/$J$14 -> 2 | J33: ha
B34: Greenhouses | G34: ha | H34: = | I34: =(+E34+F34)/$J$14 -> 0 | J34: ha
B35: Pastures (grazing land) | G35: ha | H35: = | I35: =(+E35+F35)/$J$14 -> 0 | J35: ha
B36: Fallow land | F36: 2 | G36: ha | H36: = | I36: =(+E36+F36)/$J$14 -> 2 | J36: ha
D37: Total agricultural / horticultural land | E37: =+SUM(E32:E36) -> 2 | F37: =+SUM(F32:F36) -> 4 | G37: ha | H37: = | I37: =IF((+$I$32+$I$33+$I$34+$I$35+$I$36)=I28,+$I$32+$I$33+$I$34+$I$35+$I$36,"CHECK Property rights") -> 6 | J37: ha

Sheet 2 Equipment & Assets
A1: INVEST – Farm Analysis Tool
B2: 2 EQUIPMENT & ASSETS
E4: Farm code | F4: ='1 General Information'!C6 -> 0
B6: Type | C6: Cost of existing equipment (when originally purchased) | D6: Salvage value (when selling existing equipment) | E6: Age | F6: Normal life span | G6: Annual depreciation for replacement
C10: ='1 General Information'!D13 -> € | D10: ='1 General Information'!D13 -> € | E10: years | F10: years | G10: ='1 General Information'!D13 -> €
B11: Livestock shed | C11: 60000 | D11: 10000 | E11: 2 | F11: 20 | G11: =IFERROR(SLN(C11,D11,(F11-E11)),"") -> 2777.777778 | H11: Indicative normal life span: | I11: Please select
B12: Please select | G12: =IFERROR(SLN(C12,D12,(F12-E12)),"") ->  | H12: (highly quality dependent!)
B13: Please select | H13: Livestock shed - 20 years | I13: Livestock shed
B14: Please select | H14: Garage / workshop - 20 year | I14: Garage / workshop
B15: Please select | H15: Storage / warehouse - 20 years | I15: Storage / warehouse
B16: Please select | H16: Greenhouse - 10 years | I16: Greenhouse
B17: Please select | G17: =IFERROR(SLN(C17,D17,(F17-E17)),"") ->  | H17: Other building - 20 years | I17: Other building
B18: Please select | H18: Ox cart - 7 years | I18: Ox cart
B19: Please select | H19: Truck / car - 10 years | I19: Truck / car
B20: Please select | H20: Tractor - 10 years | I20: Tractor
B21: Please select | H21: Plough - 7 years | I21: Plough
B22: Please select | H22: Cultivator / tiller - 7 years | I22: Cultivator / tiller
B23: Please select | H23: Sowing machine - 7 years | I23: Sowing machine
B24: Please select | H24: Fertilizer distributor - 7 years | I24: Fertilizer distributor
B25: Please select | H25: Sprayer - 7 years | I25: Sprayer
B26: Please select | H26: Grass cutter - 7 years | I26: Grass cutter
B27: Please select | H27: Baler - 7 years | I27: Baler
B28: Please select | H28: Cereal harvester - 10 years | I28: Cereal harvester
H29: Irrigation material - 5 years | I29: Irrigation material
H30: Water pump - 7 years | I30: Water pump
H31: PV modules - 20 years | I31: PV generator
I32: Well / borehole
C38: Total Annual Depreciation | F38: ='1 General Information'!D13 -> € | G38: =+SUM(G11:G36) -> 2777.777778

Sheet 3 Income Crops & Livestock
A1: INVEST – Farm Analysis Tool
B2: INCOME: SEASONAL CROP
E4: Farm code | F4: ='1 General Information'!C6 -> 0
B6: Agricultural land used: | C6: =SUM(C10:C14) -> 0 | D6: ='1 General Information'!D14 -> ha
D7: Unit | E7: ="Yield per "& '1 General Information'!D14 &" or Quantity" -> Yield per ha or Quantity | F7: Unit Price | G7: Value
B8: Sales
B9: Crop types: | C9: Area:
G10: =+F10*E10*C10 -> 0
G11: =+F11*E11*C11 -> 0
G12: 0
G13: 0
G14: 0
B15: By-products:
G16: =+F16*E16 -> 0
G17: 0
G18: 0
B19: GROSS INCOME | G19: =SUM(G10:G18) -> 0
B20: INCOME: PERENNIAL CROP
B22: Agricultural land used: | C22: =SUM(C26:C30) -> 0 | D22: ='1 General Information'!D14 -> ha
D23: Unit | E23: ="Yield per "& '1 General Information'!D14 &" or Quantity" -> Yield per ha or Quantity | F23: Unit Price | G23: Value
B24: Sales
B25: Crop types: | C25: Area:
G26: =+F26*E26*C26 -> 0
G27: =+F27*E27*C27 -> 0
G28: 0
G29: 0
G30: 0
B31: By-products:
G32: =+F32*E32 -> 0
G33: =+F33*E33 -> 0
G34: 0
B35: GROSS INCOME | G35: =SUM(G26:G34) -> 0
B36: INCOME: LIVESTOCK
B39: Livestock for production: | C39: =SUM(C43:C56) -> 3 | D39: Livestock sold: | F39: =SUM(E43:E56) -> 2 | G39: head
D40: Unit | E40: Quantity | F40: Unit Price | G40: Value
B41: For Production | D41: For Sale
B42: Livestock type | C42: Quantity
B43: Dairy cows | C43: 3 | D43: head | G43: =+F43*E43 -> 0
B44: Heifers | D44: head | G44: =+F44*E44 -> 0
B45: Adult steers | D45: head | G45: 0
B46: Juvenile steers | D46: head | E46: 2 | G46: 0
B47: Calfs | D47: head | G47: 0
B48: Sheep does | D48: head | G48: 0
B49: Sheep bucks | D49: head | G49: 0
B50: Sheep kids | D50: head | G50: 0
B51: Goat does | D51: head | G51: 0
B52: Goat bucks | D52: head | G52: 0
B53: Goat kids | D53: head | G53: 0
B54: Chickens | D54: head | G54: 0
G55: 0 | K55: By-product calculator
G56: 0
B57: By-products: | K57: Daily milk yield: | O57: =IF(K57="Daily milk yield:","litres/day","eggs/day") -> litres/day
B58: Milk | D58: litres | G58: =+F58*E58 -> 0 | K58: Number of dairy livestock: | O58: head
B59: Eggs | G59: =+F59*E59 -> 0 | K59: Days of milking per year: | O59: days/year
B60: Skins | G60: =+F60*E60 -> 0 | K60: Note: milking (lactation) periods typically range between 209 and 305 days per year for dairy livestock
B61: Manure | G61: =+F61*E61 -> 0
G62: 0 | K62: Total | N62: =N57*N58*N59 -> 0 | O62: =IF(K57="Daily milk yield:","litres/year","eggs/year") -> litres/year
B63: GROSS INCOME | G63: =SUM(G43:G62) -> 0

Sheet 4 Other Income
A1: INVEST – Farm Analysis Tool
B2: 4 OTHER INCOME
K4: Farm code | M4: ='1 General Information'!C6 -> 0
B6: Month | C6: January | D6: February | E6: March | F6: April | G6: May | H6: June | I6: July | J6: August | K6: September | L6: October | M6: November | N6: December | O6: Total
B7: Type of OTHER INCOME | C7: 1 | D7: 2 | E7: 3 | F7: 4 | G7: 5 | H7: 6 | I7: 7 | J7: 8 | K7: 9 | L7: 10 | M7: 11 | N7: 12
B8: Sale of water | O8: =+SUM(C8:N8) -> 0
B9: Hire out of equipment | O9: =+SUM(C9:N9) -> 0
B10: Lease out storage space | O10: =+SUM(C10:N10) -> 0
B11: Lease out land | O11: 0
B12: Lease out labour | O12: =+SUM(C12:N12) -> 0
O13: =+SUM(C13:N13) -> 0
O14: =+SUM(C14:N14) -> 0
B15: TOTAL OTHER INCOME per month | C15: =+SUM(C8:C14) -> 0 | D15: 0 | E15: 0 | F15: 0 | G15: 0 | H15: 0 | I15: 0 | J15: 0 | K15: 0 | L15: 0 | M15: 0 | N15: 0 | O15: =+SUM(O8:O14) -> 0

Sheet 5 Financing
A1: INVEST – Farm Analysis Tool
A2: CREDIT AND FINANCING (simplified calculator, to be confirmed with loan provider)
J4: Farm code | K4: ='1 General Information'!C6 -> 0
A5: Calculator | I5: Enter manually:
A6: Bank name | B6: Loan amount | C6: Credit period (years) | D6: Month of taking credit | E6: Year of taking credit | F6: Annual interest rate | G6: Monthly loan repayment | J6: Note: the Calculator value will take precedence to the manual value. Ensure calculator value is 0 in order to use manual value.
H7: OR
B9: 7000 | C9: 3 | D9: 1 | E9: 2018 | F9: 0.08 | G9: =IF(D9,-PMT(F9/12,C9*12,B9),"0") -> 219.3545582
G10: =IF(D10,-PMT(F10/12,C10*12,B10),"0") -> 0
G11: =IF(D11,-PMT(F11/12,C11*12,B11),"0") -> 0
G12: 0
G13: 0
G14: 0
G15: 0
A16: TOTAL CREDIT | B16: =SUM(B9:B15) -> 7000 | G16: =SUM(G9:G15) -> 219.3545582 | I16: =SUM(I9:I14) -> 0
D17: Total Annual Loan Repayments | G17: =G16*12 -> 2632.254699 | I17: =I16*12 -> 0

Sheet 6 Fixed and Variable Costs
A1: INVEST – Farm Analysis Tool
B2: 4 COSTS (FIXED and VARIABLE)
L4: Farm code | M4: ='1 General Information'!C6 -> 0
B6: Month | C6: January | D6: February | E6: March | F6: April | G6: May | H6: June | I6: July | J6: August | K6: September | L6: October | M6: November | N6: December | O6: Total
C7: 1 | D7: 2 | E7: 3 | F7: 4 | G7: 5 | H7: 6 | I7: 7 | J7: 8 | K7: 9 | L7: 10 | M7: 11 | N7: 12
B8: FIXED COSTS
B9: Financing fees | C9: ='5 Financing'!$G$16 -> 219.3545582 | D9: ='5 Financing'!$G$16 -> 219.3545582 | E9: ='5 Financing'!$G$16 -> 219.3545582 | F9: ='5 Financing'!$G$16 -> 219.3545582 | G9: ='5 Financing'!$G$16 -> 219.3545582 | H9: ='5 Financing'!$G$16 -> 219.3545582 | I9: ='5 Financing'!$G$16 -> 219.3545582 | J9: ='5 Financing'!$G$16 -> 219.3545582 | K9: ='5 Financing'!$G$16 -> 219.3545582 | L9: ='5 Financing'!$G$16 -> 219.3545582 | M9: ='5 Financing'!$G$16 -> 219.3545582 | N9: ='5 Financing'!$G$16 -> 219.3545582 | O9: =+SUM(C9:N9) -> 2632.254699
B10: Depreciation costs | C10: ='2 Equipment & Assets'!$G$38/12 -> 231.4814815 | D10: ='2 Equipment & Assets'!$G$38/12 -> 231.4814815 | E10: ='2 Equipment & Assets'!$G$38/12 -> 231.4814815 | F10: ='2 Equipment & Assets'!$G$38/12 -> 231.4814815 | G10: ='2 Equipment & Assets'!$G$38/12 -> 231.4814815 | H10: ='2 Equipment & Assets'!$G$38/12 -> 231.4814815 | I10: ='2 Equipment & Assets'!$G$38/12 -> 231.4814815 | J10: ='2 Equipment & Assets'!$G$38/12 -> 231.4814815 | K10: ='2 Equipment & Assets'!$G$38/12 -> 231.4814815 | L10: ='2 Equipment & Assets'!$G$38/12 -> 231.4814815 | M10: ='2 Equipment & Assets'!$G$38/12 -> 231.4814815 | N10: ='2 Equipment & Assets'!$G$38/12 -> 231.4814815 | O10: =+SUM(C10:N10) -> 2777.777778
B11: Membership fees | O11: =+SUM(C11:N11) -> 0
B12: Insurance costs | O12: =+SUM(C12:N12) -> 0
B13: Land tax | O13: 0
B14: Social fund contribution | O14: =+SUM(C14:N14) -> 0
B15: Leasing fees for equipment | O15: 0
B16: Rental costs for land | O16: =+SUM(C16:N16) -> 0
B17: - | O17: =+SUM(C17:N17) -> 0
B18: - | O18: 0
B19: TOTAL FIXED COSTS per month | C19: =+SUM(C9:C18) -> 450.8360397 | D19: =+SUM(D9:D18) -> 450.8360397 | E19: 450.8360397 | F19: 450.8360397 | G19: 450.8360397 | H19: 450.8360397 | I19: 450.8360397 | J19: 450.8360397 | K19: 450.8360397 | L19: 450.8360397 | M19: 450.8360397 | N19: 450.8360397 | O19: =+SUM(O9:O18) -> 5410.032477
B21: VARIABLE COSTS
B22: Fuel and gas costs | O22: =+SUM(C22:N22) -> 0
B23: Water fees | O23: =+SUM(C23:N23) -> 0
B24: Electricity fees | O24: 0
B25: Transport fees | O25: 0
B26: Salary costs (permanent staff) | O26: 0
B27: Salary costs (temporary staff) | O27: 0
B28: Seeds | O28: 0
B29: Manure and fertilizer | O29: 0
B30: Plant protection | O30: 0
B31: Fodder | O31: 0
B32: Veterinary Services | O32: 0
B33: Traction and mechanisation hire | O33: 0
B34: Machinery repairs and maintenance | O34: 0
B35: Infrastructure repairs and maintenance | O35: 0
B36: Irrigation repair and maintenance | O36: =+SUM(C36:N36) -> 0
B37: - | O37: 0
B38: - | O38: 0
B39: VARIABLE COSTS per month | C39: =+SUM(C22:C38) -> 0 | D39: 0 | E39: 0 | F39: 0 | G39: 0 | H39: 0 | I39: 0 | J39: 0 | K39: 0 | L39: 0 | M39: 0 | N39: 0 | O39: 0

Sheet Graph table (hidden)
A7: FIXED COSTS | B7: ='6 Fixed and Variable Costs'!B9 -> Financing fees | C7: ='6 Fixed and Variable Costs'!O9 -> 2632.254699
B8: ='6 Fixed and Variable Costs'!B10 -> Depreciation costs | C8: ='6 Fixed and Variable Costs'!O10 -> 2777.777778
B9: ='6 Fixed and Variable Costs'!B11 -> Membership fees | C9: ='6 Fixed and Variable Costs'!O11 -> 0
B10: ='6 Fixed and Variable Costs'!B12 -> Insurance costs | C10: ='6 Fixed and Variable Costs'!O12 -> 0
B11: ='6 Fixed and Variable Costs'!B13 -> Land tax | C11: ='6 Fixed and Variable Costs'!O13 -> 0
B12: ='6 Fixed and Variable Costs'!B14 -> Social fund contribution | C12: ='6 Fixed and Variable Costs'!O14 -> 0
B13: ='6 Fixed and Variable Costs'!B15 -> Leasing fees for equipment | C13: ='6 Fixed and Variable Costs'!O15 -> 0
B14: ='6 Fixed and Variable Costs'!B16 -> Rental costs for land | C14: ='6 Fixed and Variable Costs'!O16 -> 0
B15: ='6 Fixed and Variable Costs'!B17 -> - | C15: ='6 Fixed and Variable Costs'!O17 -> 0
B16: ='6 Fixed and Variable Costs'!B18 -> - | C16: ='6 Fixed and Variable Costs'!O18 -> 0
A17: ='6 Fixed and Variable Costs'!B21 -> VARIABLE COSTS | B17: ='6 Fixed and Variable Costs'!B22 -> Fuel and gas costs | C17: ='6 Fixed and Variable Costs'!O22 -> 0
B18: ='6 Fixed and Variable Costs'!B23 -> Water fees | C18: ='6 Fixed and Variable Costs'!O23 -> 0
B19: ='6 Fixed and Variable Costs'!B24 -> Electricity fees | C19: ='6 Fixed and Variable Costs'!O24 -> 0
B20: ='6 Fixed and Variable Costs'!B25 -> Transport fees | C20: ='6 Fixed and Variable Costs'!O25 -> 0
B21: ='6 Fixed and Variable Costs'!B26 -> Salary costs (permanent staff) | C21: ='6 Fixed and Variable Costs'!O26 -> 0
B22: ='6 Fixed and Variable Costs'!B27 -> Salary costs (temporary staff) | C22: ='6 Fixed and Variable Costs'!O27 -> 0
B23: ='6 Fixed and Variable Costs'!B28 -> Seeds | C23: ='6 Fixed and Variable Costs'!O28 -> 0
B24: ='6 Fixed and Variable Costs'!B29 -> Manure and fertilizer | C24: ='6 Fixed and Variable Costs'!O29 -> 0
B25: ='6 Fixed and Variable Costs'!B30 -> Plant protection | C25: ='6 Fixed and Variable Costs'!O30 -> 0
B26: ='6 Fixed and Variable Costs'!B31 -> Fodder | C26: ='6 Fixed and Variable Costs'!O31 -> 0
B27: ='6 Fixed and Variable Costs'!B32 -> Veterinary Services | C27: ='6 Fixed and Variable Costs'!O32 -> 0
B28: ='6 Fixed and Variable Costs'!B33 -> Traction and mechanisation hire | C28: ='6 Fixed and Variable Costs'!O33 -> 0
B29: ='6 Fixed and Variable Costs'!B34 -> Machinery repairs and maintenance | C29: ='6 Fixed and Variable Costs'!O34 -> 0
B30: ='6 Fixed and Variable Costs'!B35 -> Infrastructure repairs and maintenance | C30: ='6 Fixed and Variable Costs'!O35 -> 0
B31: ='6 Fixed and Variable Costs'!B36 -> Irrigation repair and maintenance | C31: ='6 Fixed and Variable Costs'!O36 -> 0
B32: ='6 Fixed and Variable Costs'!B37 -> - | C32: ='6 Fixed and Variable Costs'!O37 -> 0
B33: ='6 Fixed and Variable Costs'!B38 -> - | C33: ='6 Fixed and Variable Costs'!O38 -> 0

Sheet 7 Farm Income Statement
A1: INVEST – Farm Analysis Tool
B2: 8 FARM INCOME STATEMENT
F4: Farm code | G4: ='1 General Information'!C6 -> 0
C6: + | D6: Gross value of seasonal crop production | E6: =SUM('3 Income Crops & Livestock'!G10:G14) -> 0 | F6: ='1 General Information'!$D$13 -> € | G6: + | H6: =IF($E$16=0,0,(+E6/$E$16)*(1-$E$14)) -> 0
C7: + | D7: Gross value of seasonal crop by-product production | E7: =SUM('3 Income Crops & Livestock'!G16:G18) -> 0 | F7: ='1 General Information'!$D$13 -> € | G7: + | H7: =IF($E$16=0,0,(+E7/$E$16)*(1-$E$14)) -> 0
C8: + | D8: Gross value of perennial crop production | E8: =SUM('3 Income Crops & Livestock'!G26:G30) -> 0 | F8: ='1 General Information'!$D$13 -> € | G8: + | H8: 0
C9: + | D9: Gross value of perennial crop by-product production | E9: =SUM('3 Income Crops & Livestock'!G32:G34) -> 0 | F9: ='1 General Information'!$D$13 -> € | G9: + | H9: 0
C10: + | D10: Gross value of livestock production: | E10: =SUM('3 Income Crops & Livestock'!G43:G56) -> 0 | F10: ='1 General Information'!$D$13 -> € | G10: + | H10: 0
C11: + | D11: Gross value of livestock by-product production: | E11: =SUM('3 Income Crops & Livestock'!G58:G62) -> 0 | F11: ='1 General Information'!$D$13 -> € | G11: + | H11: 0
C12: + | D12: Gross value of other income: | E12: ='4 Other Income'!O15 -> 0 | F12: ='1 General Information'!$D$13 -> € | G12: + | H12: 0
C14: - | D14: Anticipated losses of total sales (reduction factor) | E14: 0.1 | F14: %
C16: = | D16: GROSS FARM INCOME | E16: =SUM(E6:E12)-(SUM(E6:E12)*E14) -> 0 | F16: ='1 General Information'!$D$13 -> € | G16: = | H16: =SUM(H6:H12) -> 0
C19: - | D19: Total fixed costs | E19: ='6 Fixed and Variable Costs'!O19 -> 5410.032477 | F19: ='1 General Information'!$D$13 -> € | G19: + | H19: =IF($E$21=0,0,+E19/$E$21) -> 1
C20: - | D20: Total variable costs | E20: ='6 Fixed and Variable Costs'!O39 -> 0 | F20: ='1 General Information'!$D$13 -> € | G20: + | H20: =IF($E$21=0,0,+E20/$E$21) -> 0
C21: = | D21: TOTAL COST | E21: =SUM(E19:E20) -> 5410.032477 | F21: ='1 General Information'!$D$13 -> € | G21: = | H21: =SUM(H19:H20) -> 1
C57: = | D57: ="GROSS FARM PROFIT for period " & '1 General Information'!D12 -> GROSS FARM PROFIT for period 2018 | E57: ="to " & '1 General Information'!E12 -> to 2019 | G57: =E16-E21 -> -5410.032477 | H57: ='1 General Information'!$D$13 -> €
D58: Farm Profit Margin | G58: =(E16-E21)/E16 -> 
D60: ="average profit per "&'1 General Information'!$D$14&" of seasonal crops:" -> average profit per ha of seasonal crops: | F60: =IFERROR('3 Income Crops & Livestock'!G19/'3 Income Crops & Livestock'!C6,"no crops") -> no crops | H60: ='1 General Information'!$D$13&" per"&" "&'1 General Information'!$D$14 -> € per ha
D61: ="average profit per "&'1 General Information'!D14&" of perennial crops:" -> average profit per ha of perennial crops: | F61: =IFERROR('3 Income Crops & Livestock'!G35/'3 Income Crops & Livestock'!C22,"no crops") -> no crops | H61: ='1 General Information'!$D$13&" per"&" "&'1 General Information'!$D$14 -> € per ha
D62: average profit per head of livestock: | F62: =IFERROR(('3 Income Crops & Livestock'!G63+'3 Income Crops & Livestock'!F39)/'3 Income Crops & Livestock'!C39,"no livestock") -> 0.6666666667 | H62: ='1 General Information'!$D$13&" per head" -> € per head
D63: total crop area under cultivation: | F63: ='3 Income Crops & Livestock'!C6+'3 Income Crops & Livestock'!C22 -> 0 | H63: ='1 General Information'!D14 -> ha | J63: =SUM('1 General Information'!I32:I36)-F63 -> 6
D64: =IF(J63<0,"Cultivated area does not match available crop area (1. General Information)","") -> 

Sheet Crop Price Calculation Sheet
A1: INVEST – Farm Analysis Tool
A2: Supplementary sheet for calculating average annual costs for selected crops and livestock based on seasonal monthly variations
B3: January | C3: February | D3: March | E3: April | F3: May | G3: June | H3: July | I3: August | J3: September | K3: October | L3: November | M3: December | N3: AVERAGE
B4: Unit price | C4: Unit price | D4: Unit price | E4: Unit price | F4: Unit price | G4: Unit price | H4: Unit price | I4: Unit price | J4: Unit price | K4: Unit price | L4: Unit price | M4: Unit price | N4: Unit price
A5: Seasonal Crops
A6: ='3 Income Crops & Livestock'!B10 -> 0 | N6: =AVERAGE(B6:M6) -> 
A7: ='3 Income Crops & Livestock'!B11 -> 0 | N7: =AVERAGE(B7:M7) -> 
A8: ='3 Income Crops & Livestock'!B12 -> 0
A9: ='3 Income Crops & Livestock'!B13 -> 0
A10: ='3 Income Crops & Livestock'!B14 -> 0
A11: ='3 Income Crops & Livestock'!B15 -> By-products:
A12: ='3 Income Crops & Livestock'!B16 -> 0
A13: ='3 Income Crops & Livestock'!B17 -> 0
A14: ='3 Income Crops & Livestock'!B18 -> 0
A15: Perennial crops
A16: ='3 Income Crops & Livestock'!B26 -> 0
A17: ='3 Income Crops & Livestock'!B27 -> 0
A18: ='3 Income Crops & Livestock'!B28 -> 0
A19: ='3 Income Crops & Livestock'!B29 -> 0
A20: ='3 Income Crops & Livestock'!B30 -> 0
A21: ='3 Income Crops & Livestock'!B31 -> By-products:
A22: ='3 Income Crops & Livestock'!B32 -> 0
A23: ='3 Income Crops & Livestock'!B33 -> 0
A24: ='3 Income Crops & Livestock'!B34 -> 0
A25: Livestock
A26: ='3 Income Crops & Livestock'!B43 -> Dairy cows
A27: ='3 Income Crops & Livestock'!B44 -> Heifers
A28: ='3 Income Crops & Livestock'!B45 -> Adult steers
A29: ='3 Income Crops & Livestock'!B46 -> Juvenile steers
A30: ='3 Income Crops & Livestock'!B47 -> Calfs
A31: ='3 Income Crops & Livestock'!B48 -> Sheep does
A32: ='3 Income Crops & Livestock'!B49 -> Sheep bucks
A33: ='3 Income Crops & Livestock'!B50 -> Sheep kids
A34: ='3 Income Crops & Livestock'!B51 -> Goat does
A35: ='3 Income Crops & Livestock'!B52 -> Goat bucks
A36: ='3 Income Crops & Livestock'!B53 -> Goat kids
A37: ='3 Income Crops & Livestock'!B54 -> Chickens
A38: ='3 Income Crops & Livestock'!B55 -> 0
A39: ='3 Income Crops & Livestock'!B56 -> 0
A40: ='3 Income Crops & Livestock'!B57 -> By-products:
A41: ='3 Income Crops & Livestock'!B58 -> Milk
A42: ='3 Income Crops & Livestock'!B59 -> Eggs
A43: ='3 Income Crops & Livestock'!B60 -> Skins
A44: ='3 Income Crops & Livestock'!B61 -> Manure
A45: ='3 Income Crops & Livestock'!B62 -> 0

Sheet Quick Check
A1: INVEST – Farm Analysis Tool
B2: QUICK CHECK
B5: Annual Expenditure
B6: Expenditure Type | C6: Examples | D6: Annual Amount
B7: Seasonal crop expenses | C7: Seedlings, pesticides, fertilisers, protection, etc | F7: Calculator
B8: Perennial crop expenses | C8: Seedlings, pesticides, fertilisers, protection, etc | G8: add up: | H8: multiply: | I8: divide:
B9: Livestock expenses | C9: New livestock, fodder, slaughtering, veterinary services, etc | F9: a.
B10: Operation and maintenance - Infrastructure | C10: Building renovations, painting, plastering, fencing, electricity, water, etc | F10: b.
B11: Operation and maintenance - Fixed equipment | C11: Water pumps, irrigation equipment, packaging equipment, milling, fuel, spare parts, repairs, etc | F11: c.
B12: Operation and maintenance - Movable equipment | C12: Tractor, trucks, plough, trailer, fuel, spare parts, repairs, etc | F12: d.
B13: Labour | C13: Salaries, benefits, own salary (?) etc | F13: e.
B14: Sales and distribution | C14: Packaging, fees, advertising, etc | F14: Total | G14: =SUM(G9:G13) -> 0 | H14: =H9*H10 -> 0 | I14: =I9/I10 -> 
B15: Management and administration | C15: Rent, office consumables, insurance, memberships, loan repayments, etc
D17: =SUM(D7:D16) -> 0
B19: Annual Income
B20: Income Type | C20: Examples | D20: Annual Amount
B21: Seasonal crop sales | C21: Tomatos, grain, rice, value added product, etc
B22: By-products from seasonal crops | C22: Compost, fodder, value added product, etc
B23: Perennial crop sales | C23: Citrus, apples, dates, berries, value added product, etc
B24: By-products from perennial crops | C24: Wood fuel, mulch, value added product, etc
B25: Livestock sales | C25: Cattle, sheep, chickens, etc
B26: By-products from livestock | C26: Manure, eggs, milk, wool, value added product, etc
B27: Lease income | C27: Labour, vehicles, land, etc
B28: Services income | C28: Subcontract work, maintenance service, packaging service, transport, etc
D30: =SUM(D21:D29) -> 0
C32: Profit or loss | D32: =D30-D17 -> 0
B33: =IF(D32>0,"You are profitable! Proceed with detailed analysis to be sure.",(IF(D32<0,"You are making a loss. Review your values or consider additional income opportunities or means to reduce expenses.",""))) -> 
